[Event "Titled Tuesday Blitz December 27 Late 2022"]
[White "Pershin, Denis"]
[Black "Gerbelli Neto, Eduardo"]
[WhiteFideId "24165506"]
[BlackFideId "2103281"]
[WhiteElo "2366"]
[BlackElo "2114"]
[Result "1/2-1/2"]
[Round "02"]
[TimeControl "180+2"]
[Date "2022.12.27"]
[WhiteClock "0:00:03"]
[BlackClock "0:00:02"]

1. e4 {[%clk 0:02:59]}  e5 {[%clk 0:02:59]} 2. Nf3 {[%clk 0:02:59]}  Nc6 {[%clk 0:03:00]} 3. Bc4 {[%clk 0:02:59]}  Nf6 {[%clk 0:02:59]} 4. d3 {[%clk 0:02:59]}  Bc5 {[%clk 0:02:59]} 5. h3 {[%clk 0:02:57]}  d6 {[%clk 0:02:58]} 6. c3 {[%clk 0:02:56]}  a5 {[%clk 0:02:58]} 7. a4 {[%clk 0:02:51]}  O-O {[%clk 0:02:57]} 8. O-O {[%clk 0:02:49]}  Be6 {[%clk 0:02:56]} 9. Nbd2 {[%clk 0:02:40]}  Qe7 {[%clk 0:02:26]} 10. Qb3 {[%clk 0:02:36]}  Rab8 {[%clk 0:01:57]} 11. Rd1 {[%clk 0:02:36]}  h6 {[%clk 0:01:57]} 12. Nf1 {[%clk 0:02:36]}  Rfd8 {[%clk 0:01:48]} 13. Ne3 {[%clk 0:02:35]}  Bxc4 {[%clk 0:01:45]} 14. Qxc4 {[%clk 0:02:32]}  Bb6 {[%clk 0:01:10]} 15. Qb3 {[%clk 0:02:25]}  Bxe3 {[%clk 0:01:06]} 16. Bxe3 {[%clk 0:02:16]}  b6 {[%clk 0:01:05]} 17. Qc4 {[%clk 0:01:47]}  Qd7 {[%clk 0:01:03]} 18. b4 {[%clk 0:01:42]}  axb4 {[%clk 0:00:53]} 19. cxb4 {[%clk 0:01:43]}  d5 {[%clk 0:00:53]} 20. exd5 {[%clk 0:01:41]}  Qxd5 {[%clk 0:00:53]} 21. b5 {[%clk 0:01:36]}  Qxc4 {[%clk 0:00:46]} 22. dxc4 {[%clk 0:01:37]}  e4 {[%clk 0:00:35]} 23. Nd4 {[%clk 0:01:33]}  Nxd4 {[%clk 0:00:35]} 24. Bxd4 {[%clk 0:01:34]}  Nd7 {[%clk 0:00:33]} 25. Be3 {[%clk 0:01:18]}  Ne5 {[%clk 0:00:32]} 26. c5 {[%clk 0:01:14]}  Nd3 {[%clk 0:00:29]} 27. cxb6 {[%clk 0:01:12]}  cxb6 {[%clk 0:00:30]} 28. Ra2 {[%clk 0:00:38]}  Rd5 {[%clk 0:00:30]} 29. Rc2 {[%clk 0:00:33]}  f5 {[%clk 0:00:22]} 30. Rc6 {[%clk 0:00:31]}  Ra8 {[%clk 0:00:22]} 31. Ra1 {[%clk 0:00:30]}  Rxb5 {[%clk 0:00:21]} 32. Rxb6 {[%clk 0:00:19]}  Rba5 {[%clk 0:00:17]} 33. Rab1 {[%clk 0:00:02]}  Rxa4 {[%clk 0:00:17]} 34. Rb7 {[%clk 0:00:03]}  Ra1 {[%clk 0:00:16]} 35. Rxa1 {[%clk 0:00:01]}  Rxa1+ {[%clk 0:00:17]} 36. Kh2 {[%clk 0:00:02]}  Ra2 {[%clk 0:00:13]} 37. Bd4 {[%clk 0:00:02]}  g5 {[%clk 0:00:13]} 38. Rg7+ {[%clk 0:00:01]}  Kf8 {[%clk 0:00:13]} 39. Rg6 {[%clk 0:00:02]}  Nxf2 {[%clk 0:00:12]} 40. Rf6+ {[%clk 0:00:02]}  Ke7 {[%clk 0:00:11]} 41. Rxf5 {[%clk 0:00:03]}  Nd3 {[%clk 0:00:11]} 42. Rd5 {[%clk 0:00:02]}  Nf4 {[%clk 0:00:10]} 43. Bc5+ {[%clk 0:00:01]}  Ke6 {[%clk 0:00:09]} 44. Rd6+ {[%clk 0:00:02]}  Ke5 {[%clk 0:00:09]} 45. Rxh6 {[%clk 0:00:02]}  Rxg2+ {[%clk 0:00:08]} 46. Kh1 {[%clk 0:00:03]}  Rc2 {[%clk 0:00:07]} 47. Bd6+ {[%clk 0:00:03]}  Kf5 {[%clk 0:00:07]} 48. Rh8 {[%clk 0:00:02]}  e3 {[%clk 0:00:07]} 49. Re8 {[%clk 0:00:03]}  e2 {[%clk 0:00:07]} 50. Bb4 {[%clk 0:00:02]}  Nd3 {[%clk 0:00:05]} 51. Ba5 {[%clk 0:00:01]}  Rc1+ {[%clk 0:00:04]} 52. Kg2 {[%clk 0:00:02]}  e1=Q {[%clk 0:00:05]} 53. Bxe1 {[%clk 0:00:02]}  Rxe1 {[%clk 0:00:06]} 54. Rd8 {[%clk 0:00:01]}  Re2+ {[%clk 0:00:05]} 55. Kg3 {[%clk 0:00:02]}  Re3+ {[%clk 0:00:05]} 56. Kh2 {[%clk 0:00:02]}  Nf4 {[%clk 0:00:05]} 57. Rf8+ {[%clk 0:00:03]}  Ke4 {[%clk 0:00:05]} 58. Rh8 {[%clk 0:00:03]}  Kf3 {[%clk 0:00:05]} 59. Rg8 {[%clk 0:00:01]}  Re2+ {[%clk 0:00:06]} 60. Kh1 {[%clk 0:00:01]}  Nxh3 {[%clk 0:00:03]} 61. Rf8+ {[%clk 0:00:01]}  Kg3 {[%clk 0:00:03]} 62. Rf3+ {[%clk 0:00:01]}  Kg4 {[%clk 0:00:03]} 63. Rg3+ {[%clk 0:00:01]}  Kh4 {[%clk 0:00:02]} 64. Rg4+ {[%clk 0:00:02]}  Kh5 {[%clk 0:00:01]} 65. Rh4+ {[%clk 0:00:03]}  Kxh4 {[%clk 0:00:02]} 1/2-1/2


[Site "https://www.chess.com"]

[Event "Titled Tuesday Blitz December 27 Late 2022"]
[White "Potapova, Margarita"]
[Black "Balakrishnan, Praveen"]
[WhiteFideId "14126869"]
[BlackFideId "2064871"]
[WhiteElo "2104"]
[BlackElo "2529"]
[Result "0-1"]
[Round "02"]
[TimeControl "180+2"]
[Date "2022.12.27"]
[WhiteClock "0:00:57"]
[BlackClock "0:00:11"]

1. d4 {[%clk 0:03:00]}  Nf6 {[%clk 0:02:59]} 2. c4 {[%clk 0:03:01]}  e6 {[%clk 0:03:00]} 3. Nf3 {[%clk 0:03:01]}  d5 {[%clk 0:03:00]} 4. Nc3 {[%clk 0:03:01]}  Be7 {[%clk 0:03:00]} 5. Bf4 {[%clk 0:03:01]}  O-O {[%clk 0:03:00]} 6. e3 {[%clk 0:03:01]}  b6 {[%clk 0:02:59]} 7. cxd5 {[%clk 0:03:01]}  Nxd5 {[%clk 0:02:57]} 8. Nxd5 {[%clk 0:03:01]}  Qxd5 {[%clk 0:02:58]} 9. Bd3 {[%clk 0:03:01]}  Ba6 {[%clk 0:02:53]} 10. Bxa6 {[%clk 0:02:53]}  Nxa6 {[%clk 0:02:52]} 11. O-O {[%clk 0:02:52]}  c5 {[%clk 0:02:51]} 12. dxc5 {[%clk 0:02:52]}  Qxd1 {[%clk 0:02:44]} 13. Rfxd1 {[%clk 0:02:53]}  Nxc5 {[%clk 0:02:45]} 14. Ne5 {[%clk 0:02:54]}  Rac8 {[%clk 0:02:42]} 15. Rac1 {[%clk 0:02:46]}  f6 {[%clk 0:02:41]} 16. Nc4 {[%clk 0:02:42]}  e5 {[%clk 0:02:30]} 17. Bg3 {[%clk 0:02:42]}  b5 {[%clk 0:02:30]} 18. Na5 {[%clk 0:02:40]}  Nd3 {[%clk 0:02:22]} 19. Rb1 {[%clk 0:02:19]}  Rfd8 {[%clk 0:02:16]} 20. Kf1 {[%clk 0:02:10]}  Rc2 {[%clk 0:02:09]} 21. Nb3 {[%clk 0:01:52]}  Nxb2 {[%clk 0:01:41]} 22. Rxd8+ {[%clk 0:01:46]}  Bxd8 {[%clk 0:01:42]} 23. Na1 {[%clk 0:01:40]}  Rd2 {[%clk 0:01:42]} 24. Ke1 {[%clk 0:01:40]}  Ba5 {[%clk 0:01:38]} 25. Kf1 {[%clk 0:01:38]}  Rd1+ {[%clk 0:01:02]} 26. Rxd1 {[%clk 0:01:37]}  Nxd1 {[%clk 0:01:03]} 27. a3 {[%clk 0:01:21]}  Bc3 {[%clk 0:01:00]} 28. Nc2 {[%clk 0:01:20]}  Nb2 {[%clk 0:00:54]} 29. Ke2 {[%clk 0:01:20]}  a5 {[%clk 0:00:54]} 30. f4 {[%clk 0:01:17]}  e4 {[%clk 0:00:51]} 31. Be1 {[%clk 0:01:17]}  Bxe1 {[%clk 0:00:45]} 32. Kxe1 {[%clk 0:01:18]}  Nc4 {[%clk 0:00:45]} 33. Ke2 {[%clk 0:01:13]}  Kf7 {[%clk 0:00:45]} 34. g4 {[%clk 0:01:12]}  Ke7 {[%clk 0:00:45]} 35. h4 {[%clk 0:01:11]}  Kd6 {[%clk 0:00:44]} 36. g5 {[%clk 0:01:09]}  Kc5 {[%clk 0:00:39]} 37. h5 {[%clk 0:01:08]}  fxg5 {[%clk 0:00:37]} 38. fxg5 {[%clk 0:01:08]}  g6 {[%clk 0:00:36]} 39. h6 {[%clk 0:01:06]}  Ne5 {[%clk 0:00:26]} 40. Nd4 {[%clk 0:01:05]}  Nf7 {[%clk 0:00:23]} 41. Ne6+ {[%clk 0:01:04]}  Kc4 {[%clk 0:00:22]} 42. Kd2 {[%clk 0:00:57]}  Kb3 {[%clk 0:00:21]} 43. Nd4+ {[%clk 0:00:55]}  Kxa3 {[%clk 0:00:19]} 44. Nxb5+ {[%clk 0:00:56]}  Kb4 {[%clk 0:00:18]} 45. Nc3 {[%clk 0:00:56]}  Nxg5 {[%clk 0:00:19]} 46. Nd5+ {[%clk 0:00:56]}  Kb3 {[%clk 0:00:18]} 47. Kc1 {[%clk 0:00:56]}  Kc4 {[%clk 0:00:17]} 48. Nf6 {[%clk 0:00:56]}  Kd3 {[%clk 0:00:17]} 49. Ng4 {[%clk 0:00:56]}  Ke2 {[%clk 0:00:14]} 50. Kc2 {[%clk 0:00:56]}  Kf3 {[%clk 0:00:14]} 51. Ne5+ {[%clk 0:00:56]}  Kxe3 {[%clk 0:00:14]} 52. Kc3 {[%clk 0:00:57]}  Kf4 {[%clk 0:00:14]} 53. Nc6 {[%clk 0:00:58]}  Nf7 {[%clk 0:00:12]} 54. Ne7 {[%clk 0:00:57]}  Nxh6 {[%clk 0:00:11]} 55. Nd5+ {[%clk 0:00:57]}  Kf3 {[%clk 0:00:12]} 56. Nf6 {[%clk 0:00:57]}  e3 {[%clk 0:00:11]} 0-1


[Site "https://www.chess.com"]

[Event "Titled Tuesday Blitz December 27 Late 2022"]
[White "Remolar Gallen, Jose"]
[Black "Adla, Diego"]
[WhiteFideId "2215187"]
[BlackFideId "100072"]
[WhiteElo "2285"]
[BlackElo "2383"]
[Result "1-0"]
[Round "02"]
[TimeControl "180+2"]
[Date "2022.12.27"]
[WhiteClock "0:00:09"]
[BlackClock "0:00:20"]

1. d4 {[%clk 0:03:00]}  Nf6 {[%clk 0:02:59]} 2. c4 {[%clk 0:03:00]}  e6 {[%clk 0:02:59]} 3. Nc3 {[%clk 0:03:00]}  Bb4 {[%clk 0:02:56]} 4. e3 {[%clk 0:03:01]}  O-O {[%clk 0:02:54]} 5. Ne2 {[%clk 0:03:01]}  Re8 {[%clk 0:02:52]} 6. a3 {[%clk 0:03:01]}  Bf8 {[%clk 0:02:51]} 7. d5 {[%clk 0:03:01]}  a5 {[%clk 0:02:40]} 8. Ng3 {[%clk 0:02:59]}  Na6 {[%clk 0:02:36]} 9. Be2 {[%clk 0:02:55]}  Nc5 {[%clk 0:02:34]} 10. O-O {[%clk 0:02:54]}  g6 {[%clk 0:02:29]} 11. b3 {[%clk 0:02:49]}  Bg7 {[%clk 0:02:26]} 12. Bb2 {[%clk 0:02:50]}  d6 {[%clk 0:02:22]} 13. Qc2 {[%clk 0:02:47]}  exd5 {[%clk 0:02:19]} 14. cxd5 {[%clk 0:02:47]}  h5 {[%clk 0:02:17]} 15. b4 {[%clk 0:02:33]}  axb4 {[%clk 0:02:09]} 16. axb4 {[%clk 0:02:34]}  Rxa1 {[%clk 0:02:05]} 17. Rxa1 {[%clk 0:02:35]}  Ncd7 {[%clk 0:02:05]} 18. Nf1 {[%clk 0:01:59]}  Nb6 {[%clk 0:02:05]} 19. e4 {[%clk 0:01:51]}  Nxe4 {[%clk 0:01:57]} 20. Nxe4 {[%clk 0:01:42]}  Bxb2 {[%clk 0:01:56]} 21. Qxb2 {[%clk 0:01:38]}  Rxe4 {[%clk 0:01:56]} 22. Ne3 {[%clk 0:01:34]}  Bd7 {[%clk 0:01:45]} 23. Ra7 {[%clk 0:01:31]}  Bc8 {[%clk 0:01:42]} 24. Bf3 {[%clk 0:01:22]}  Re8 {[%clk 0:01:41]} 25. Qd4 {[%clk 0:01:17]}  Qe7 {[%clk 0:01:41]} 26. Qc3 {[%clk 0:01:02]}  f5 {[%clk 0:01:34]} 27. g3 {[%clk 0:00:59]}  Qg7 {[%clk 0:01:31]} 28. Ra3 {[%clk 0:00:46]}  Qxc3 {[%clk 0:01:30]} 29. Rxc3 {[%clk 0:00:47]}  Re7 {[%clk 0:01:30]} 30. h4 {[%clk 0:00:47]}  Kg7 {[%clk 0:01:30]} 31. Nc2 {[%clk 0:00:28]}  Kf6 {[%clk 0:01:30]} 32. Nd4 {[%clk 0:00:28]}  Ke5 {[%clk 0:01:27]} 33. Re3+ {[%clk 0:00:27]}  Kf6 {[%clk 0:01:27]} 34. Rc3 {[%clk 0:00:26]}  Bd7 {[%clk 0:01:02]} 35. Rxc7 {[%clk 0:00:23]}  Ba4 {[%clk 0:01:03]} 36. Rxe7 {[%clk 0:00:21]}  Kxe7 {[%clk 0:01:02]} 37. Kf1 {[%clk 0:00:19]}  Be8 {[%clk 0:01:01]} 38. Ne2 {[%clk 0:00:18]}  Bf7 {[%clk 0:01:00]} 39. Nf4 {[%clk 0:00:18]}  Kf6 {[%clk 0:01:00]} 40. Ke2 {[%clk 0:00:18]}  Ke5 {[%clk 0:01:00]} 41. Kd3 {[%clk 0:00:16]}  Nd7 {[%clk 0:00:56]} 42. Kc3 {[%clk 0:00:14]}  b6 {[%clk 0:00:55]} 43. Kc4 {[%clk 0:00:11]}  Nf6 {[%clk 0:00:37]} 44. Kb5 {[%clk 0:00:09]}  Nd7 {[%clk 0:00:35]} 45. Kc6 {[%clk 0:00:08]}  Be8 {[%clk 0:00:35]} 46. Kc7 {[%clk 0:00:06]}  Kd4 {[%clk 0:00:33]} 47. Kd8 {[%clk 0:00:05]}  Nf6 {[%clk 0:00:33]} 48. Ke7 {[%clk 0:00:05]}  Ke5 {[%clk 0:00:33]} 49. Nd3+ {[%clk 0:00:03]}  Kd4 {[%clk 0:00:33]} 50. Nf4 {[%clk 0:00:03]}  Ke5 {[%clk 0:00:26]} 51. Nd3+ {[%clk 0:00:03]}  Kd4 {[%clk 0:00:24]} 52. Kxf6 {[%clk 0:00:04]}  Kxd3 {[%clk 0:00:24]} 53. Ke7 {[%clk 0:00:05]}  Bb5 {[%clk 0:00:20]} 54. Kxd6 {[%clk 0:00:05]}  Kc4 {[%clk 0:00:20]} 55. Kc7 {[%clk 0:00:04]}  Kxb4 {[%clk 0:00:21]} 56. d6 {[%clk 0:00:04]}  Kc5 {[%clk 0:00:20]} 57. Be2 {[%clk 0:00:04]}  Ba4 {[%clk 0:00:18]} 58. Bd1 {[%clk 0:00:03]}  Bb5 {[%clk 0:00:18]} 59. Be2 {[%clk 0:00:03]}  Be8 {[%clk 0:00:18]} 60. d7 {[%clk 0:00:04]}  Bxd7 {[%clk 0:00:17]} 61. Kxd7 {[%clk 0:00:05]}  Kd4 {[%clk 0:00:18]} 62. Ke6 {[%clk 0:00:05]}  f4 {[%clk 0:00:18]} 63. Kf6 {[%clk 0:00:03]}  fxg3 {[%clk 0:00:17]} 64. fxg3 {[%clk 0:00:04]}  Ke3 {[%clk 0:00:18]} 65. Bb5 {[%clk 0:00:04]}  Kf2 {[%clk 0:00:18]} 66. Kxg6 {[%clk 0:00:05]}  Kxg3 {[%clk 0:00:18]} 67. Kxh5 {[%clk 0:00:05]}  Kf4 {[%clk 0:00:19]} 68. Kg6 {[%clk 0:00:06]}  Ke5 {[%clk 0:00:19]} 69. h5 {[%clk 0:00:06]}  Kd6 {[%clk 0:00:20]} 70. h6 {[%clk 0:00:06]}  Kc5 {[%clk 0:00:20]} 71. Be8 {[%clk 0:00:07]}  b5 {[%clk 0:00:20]} 72. Bxb5 {[%clk 0:00:08]}  Kxb5 {[%clk 0:00:20]} 73. h7 {[%clk 0:00:09]} 1-0


[Site "https://www.chess.com"]

[Event "Titled Tuesday Blitz December 27 Late 2022"]
[White "Rodriguez Fontecha, Marcos"]
[Black "Perez Ponsa, Federico"]
[WhiteFideId "2256576"]
[BlackFideId "117927"]
[WhiteElo "2309"]
[BlackElo "2532"]
[Result "0-1"]
[Round "02"]
[TimeControl "180+2"]
[Date "2022.12.27"]
[WhiteClock "0:00:07"]
[BlackClock "0:00:19"]

1. Nf3 {[%clk 0:03:00]}  Nf6 {[%clk 0:02:53]} 2. g4 {[%clk 0:03:00]}  Nxg4 {[%clk 0:02:53]} 3. e4 {[%clk 0:03:01]}  d5 {[%clk 0:02:50]} 4. exd5 {[%clk 0:03:00]}  Qxd5 {[%clk 0:02:48]} 5. Nc3 {[%clk 0:03:01]}  Qd8 {[%clk 0:02:29]} 6. Rg1 {[%clk 0:03:00]}  c5 {[%clk 0:02:26]} 7. d4 {[%clk 0:02:58]}  cxd4 {[%clk 0:02:24]} 8. Nxd4 {[%clk 0:02:59]}  Ne5 {[%clk 0:02:22]} 9. Be3 {[%clk 0:02:57]}  Nbc6 {[%clk 0:02:20]} 10. Bb5 {[%clk 0:02:55]}  Bd7 {[%clk 0:02:20]} 11. Qe2 {[%clk 0:02:51]}  a6 {[%clk 0:02:18]} 12. Bxc6 {[%clk 0:02:38]}  Nxc6 {[%clk 0:02:18]} 13. O-O-O {[%clk 0:02:37]}  Nxd4 {[%clk 0:02:12]} 14. Bxd4 {[%clk 0:02:35]}  Qa5 {[%clk 0:01:56]} 15. Qc4 {[%clk 0:02:17]}  Be6 {[%clk 0:01:43]} 16. Qa4+ {[%clk 0:01:43]}  Qxa4 {[%clk 0:01:37]} 17. Nxa4 {[%clk 0:01:44]}  Rd8 {[%clk 0:01:26]} 18. Nc5 {[%clk 0:01:40]}  Bc8 {[%clk 0:01:21]} 19. c3 {[%clk 0:01:22]}  e5 {[%clk 0:01:16]} 20. Rde1 {[%clk 0:01:17]}  f6 {[%clk 0:01:12]} 21. f4 {[%clk 0:01:17]}  Kf7 {[%clk 0:01:05]} 22. fxe5 {[%clk 0:01:16]}  Bxc5 {[%clk 0:01:05]} 23. Bxc5 {[%clk 0:01:16]}  f5 {[%clk 0:01:06]} 24. Bb6 {[%clk 0:00:51]}  Rd3 {[%clk 0:01:02]} 25. Kc2 {[%clk 0:00:49]}  Rh3 {[%clk 0:01:01]} 26. Re2 {[%clk 0:00:47]}  Be6 {[%clk 0:01:01]} 27. b3 {[%clk 0:00:45]}  Rc8 {[%clk 0:01:00]} 28. c4 {[%clk 0:00:46]}  h6 {[%clk 0:00:52]} 29. Rg3 {[%clk 0:00:44]}  Rh4 {[%clk 0:00:50]} 30. Rd3 {[%clk 0:00:42]}  g5 {[%clk 0:00:49]} 31. Rd6 {[%clk 0:00:40]}  f4 {[%clk 0:00:46]} 32. Kb2 {[%clk 0:00:35]}  Re8 {[%clk 0:00:44]} 33. Rc2 {[%clk 0:00:34]}  Rh3 {[%clk 0:00:41]} 34. c5 {[%clk 0:00:32]}  g4 {[%clk 0:00:41]} 35. c6 {[%clk 0:00:32]}  bxc6 {[%clk 0:00:41]} 36. Rdxc6 {[%clk 0:00:32]}  g3 {[%clk 0:00:41]} 37. hxg3 {[%clk 0:00:29]}  fxg3 {[%clk 0:00:42]} 38. Rc7+ {[%clk 0:00:27]}  Re7 {[%clk 0:00:42]} 39. Rxe7+ {[%clk 0:00:26]}  Kxe7 {[%clk 0:00:43]} 40. Rc7+ {[%clk 0:00:26]}  Bd7 {[%clk 0:00:40]} 41. Rc3 {[%clk 0:00:25]}  h5 {[%clk 0:00:34]} 42. Ka3 {[%clk 0:00:20]}  h4 {[%clk 0:00:33]} 43. Kb4 {[%clk 0:00:15]}  Rh1 {[%clk 0:00:32]} 44. Ka5 {[%clk 0:00:13]}  g2 {[%clk 0:00:27]} 45. Rc4 {[%clk 0:00:14]}  h3 {[%clk 0:00:25]} 46. Rh4 {[%clk 0:00:12]}  h2 {[%clk 0:00:25]} 47. Rh7+ {[%clk 0:00:10]}  Ke6 {[%clk 0:00:24]} 48. Rh6+ {[%clk 0:00:08]}  Kf5 {[%clk 0:00:20]} 49. Rh5+ {[%clk 0:00:07]}  Kg6 {[%clk 0:00:19]} 0-1


[Site "https://www.chess.com"]

[Event "Titled Tuesday Blitz December 27 Late 2022"]
[White "Salman, Pavel"]
[Black "Ardila, Oscar Humberto"]
[WhiteFideId "24153753"]
[BlackFideId "4404742"]
[WhiteElo "2287"]
[BlackElo "1982"]
[Result "1-0"]
[Round "02"]
[TimeControl "180+2"]
[Date "2022.12.27"]
[WhiteClock "0:00:53"]
[BlackClock "0:00:02"]

1. d4 {[%clk 0:03:00]}  Nf6 {[%clk 0:02:59]} 2. Bf4 {[%clk 0:03:00]}  d6 {[%clk 0:02:56]} 3. Nc3 {[%clk 0:02:59]}  Nbd7 {[%clk 0:02:52]} 4. e4 {[%clk 0:02:59]}  e5 {[%clk 0:02:49]} 5. Be3 {[%clk 0:02:52]}  Be7 {[%clk 0:02:45]} 6. f3 {[%clk 0:02:44]}  O-O {[%clk 0:02:44]} 7. g4 {[%clk 0:02:44]}  exd4 {[%clk 0:02:40]} 8. Qxd4 {[%clk 0:02:44]}  d5 {[%clk 0:02:16]} 9. O-O-O {[%clk 0:02:34]}  Bc5 {[%clk 0:02:15]} 10. Qd2 {[%clk 0:02:34]}  Bxe3 {[%clk 0:02:13]} 11. Qxe3 {[%clk 0:02:35]}  dxe4 {[%clk 0:02:13]} 12. Nxe4 {[%clk 0:02:36]}  Nxe4 {[%clk 0:02:11]} 13. fxe4 {[%clk 0:02:36]}  Qe7 {[%clk 0:02:09]} 14. Nf3 {[%clk 0:02:35]}  Nc5 {[%clk 0:01:46]} 15. Bd3 {[%clk 0:02:30]}  Bxg4 {[%clk 0:01:43]} 16. Rhg1 {[%clk 0:02:29]}  Bxf3 {[%clk 0:01:38]} 17. Qxf3 {[%clk 0:02:29]}  Rad8 {[%clk 0:01:34]} 18. Kb1 {[%clk 0:02:23]}  Nxd3 {[%clk 0:01:34]} 19. cxd3 {[%clk 0:02:24]}  f6 {[%clk 0:01:27]} 20. Rg3 {[%clk 0:02:23]}  Rf7 {[%clk 0:01:27]} 21. h4 {[%clk 0:02:23]}  Qe5 {[%clk 0:01:25]} 22. Rdg1 {[%clk 0:02:20]}  Kh8 {[%clk 0:01:23]} 23. h5 {[%clk 0:02:14]}  c5 {[%clk 0:01:20]} 24. h6 {[%clk 0:02:12]}  g6 {[%clk 0:01:20]} 25. Rc1 {[%clk 0:02:06]}  f5 {[%clk 0:01:17]} 26. Rh3 {[%clk 0:01:52]}  b6 {[%clk 0:01:06]} 27. a3 {[%clk 0:01:46]}  Rdf8 {[%clk 0:01:03]} 28. Qg2 {[%clk 0:01:32]}  fxe4 {[%clk 0:01:01]} 29. Qxe4 {[%clk 0:01:31]}  Qxe4 {[%clk 0:01:00]} 30. dxe4 {[%clk 0:01:32]}  Re8 {[%clk 0:00:52]} 31. Re1 {[%clk 0:01:32]}  Re5 {[%clk 0:00:49]} 32. Kc2 {[%clk 0:01:30]}  Rf4 {[%clk 0:00:46]} 33. Kd3 {[%clk 0:01:29]}  Kg8 {[%clk 0:00:45]} 34. Rhe3 {[%clk 0:01:24]}  Kf7 {[%clk 0:00:44]} 35. Kc4 {[%clk 0:01:24]}  Ke6 {[%clk 0:00:43]} 36. Kb5 {[%clk 0:01:22]}  Rh5 {[%clk 0:00:36]} 37. Ka6 {[%clk 0:01:22]}  Rxh6 {[%clk 0:00:35]} 38. Kxa7 {[%clk 0:01:22]}  b5 {[%clk 0:00:36]} 39. Kb6 {[%clk 0:01:22]}  b4 {[%clk 0:00:34]} 40. a4 {[%clk 0:01:21]}  g5 {[%clk 0:00:30]} 41. a5 {[%clk 0:01:20]}  Ke5+ {[%clk 0:00:30]} 42. Kxc5 {[%clk 0:01:17]}  Rf8 {[%clk 0:00:28]} 43. Kxb4 {[%clk 0:01:16]}  Rb8+ {[%clk 0:00:28]} 44. Ka4 {[%clk 0:01:17]}  Rd6 {[%clk 0:00:25]} 45. b4 {[%clk 0:01:16]}  Rd4 {[%clk 0:00:24]} 46. Rb3 {[%clk 0:01:15]}  g4 {[%clk 0:00:24]} 47. a6 {[%clk 0:01:14]}  g3 {[%clk 0:00:20]} 48. Rg1 {[%clk 0:01:12]}  Kf4 {[%clk 0:00:17]} 49. Rgxg3 {[%clk 0:01:10]}  Rxe4 {[%clk 0:00:09]} 50. Rh3 {[%clk 0:01:04]}  Rb6 {[%clk 0:00:08]} 51. Ka5 {[%clk 0:01:03]}  Rg6 {[%clk 0:00:05]} 52. b5 {[%clk 0:00:57]}  Re1 {[%clk 0:00:05]} 53. Rh4+ {[%clk 0:00:52]}  Kg5 {[%clk 0:00:04]} 54. Ra4 {[%clk 0:00:52]}  Ree6 {[%clk 0:00:03]} 55. a7 {[%clk 0:00:52]}  Rg8 {[%clk 0:00:02]} 56. Rg3+ {[%clk 0:00:53]} 1-0


[Site "https://www.chess.com"]

[Event "Titled Tuesday Blitz December 27 Late 2022"]
[White "Schmidt, Harald"]
[Black "Yurovskykh, Oleksandr"]
[WhiteFideId "4648358"]
[BlackFideId "14134020"]
[WhiteElo "2347"]
[BlackElo "2328"]
[Result "1-0"]
[Round "02"]
[TimeControl "180+2"]
[Date "2022.12.27"]
[WhiteClock "0:00:15"]
[BlackClock "0:00:03"]

1. c4 {[%clk 0:02:59]}  c6 {[%clk 0:02:58]} 2. g3 {[%clk 0:02:57]}  d5 {[%clk 0:02:59]} 3. Bg2 {[%clk 0:02:57]}  Nf6 {[%clk 0:03:00]} 4. Nf3 {[%clk 0:02:57]}  Bg4 {[%clk 0:03:00]} 5. Ne5 {[%clk 0:02:55]}  Be6 {[%clk 0:03:00]} 6. cxd5 {[%clk 0:02:51]}  Bxd5 {[%clk 0:03:01]} 7. f3 {[%clk 0:02:49]}  c5 {[%clk 0:02:44]} 8. Nc3 {[%clk 0:02:42]}  Nc6 {[%clk 0:02:20]} 9. Nxd5 {[%clk 0:02:39]}  Qxd5 {[%clk 0:02:20]} 10. Nxc6 {[%clk 0:02:36]}  Qxc6 {[%clk 0:02:21]} 11. O-O {[%clk 0:02:35]}  e6 {[%clk 0:02:15]} 12. b3 {[%clk 0:02:35]}  Be7 {[%clk 0:02:13]} 13. Bb2 {[%clk 0:02:34]}  O-O {[%clk 0:02:12]} 14. Qc2 {[%clk 0:02:34]}  Rac8 {[%clk 0:02:11]} 15. Rfd1 {[%clk 0:02:33]}  Rfd8 {[%clk 0:02:08]} 16. Rac1 {[%clk 0:02:33]}  Qa6 {[%clk 0:01:51]} 17. Bf1 {[%clk 0:02:21]}  Qb6 {[%clk 0:01:46]} 18. Kg2 {[%clk 0:02:19]}  Nd5 {[%clk 0:01:44]} 19. a3 {[%clk 0:02:15]}  Rc6 {[%clk 0:01:39]} 20. e4 {[%clk 0:02:14]}  Nf6 {[%clk 0:01:34]} 21. Qc4 {[%clk 0:01:56]}  Rdc8 {[%clk 0:01:29]} 22. Qb5 {[%clk 0:01:54]}  Qxb5 {[%clk 0:01:29]} 23. Bxb5 {[%clk 0:01:53]}  Rb6 {[%clk 0:01:30]} 24. Bc4 {[%clk 0:01:52]}  Nd7 {[%clk 0:01:24]} 25. d4 {[%clk 0:01:51]}  Bf6 {[%clk 0:01:14]} 26. dxc5 {[%clk 0:01:41]}  Nxc5 {[%clk 0:01:15]} 27. Bxf6 {[%clk 0:01:26]}  gxf6 {[%clk 0:01:16]} 28. b4 {[%clk 0:01:22]}  Na6 {[%clk 0:00:31]} 29. Bd3 {[%clk 0:01:07]}  Rxc1 {[%clk 0:00:28]} 30. Rxc1 {[%clk 0:01:06]}  Rd6 {[%clk 0:00:28]} 31. Rc3 {[%clk 0:01:04]}  Kg7 {[%clk 0:00:27]} 32. Kf2 {[%clk 0:01:04]}  Nb8 {[%clk 0:00:26]} 33. Ke3 {[%clk 0:01:02]}  Nc6 {[%clk 0:00:24]} 34. b5 {[%clk 0:01:02]}  Na5 {[%clk 0:00:18]} 35. Rc7 {[%clk 0:00:50]}  Kf8 {[%clk 0:00:18]} 36. h4 {[%clk 0:00:45]}  h6 {[%clk 0:00:18]} 37. Rc8+ {[%clk 0:00:39]}  Ke7 {[%clk 0:00:19]} 38. Ra8 {[%clk 0:00:37]}  Nb3 {[%clk 0:00:18]} 39. Rxa7 {[%clk 0:00:36]}  Nc5 {[%clk 0:00:19]} 40. Be2 {[%clk 0:00:35]}  e5 {[%clk 0:00:17]} 41. a4 {[%clk 0:00:35]}  Rd4 {[%clk 0:00:17]} 42. a5 {[%clk 0:00:33]}  Kf8 {[%clk 0:00:15]} 43. Ra8+ {[%clk 0:00:28]}  Kg7 {[%clk 0:00:15]} 44. Rc8 {[%clk 0:00:27]}  Ne6 {[%clk 0:00:12]} 45. a6 {[%clk 0:00:26]}  bxa6 {[%clk 0:00:13]} 46. bxa6 {[%clk 0:00:26]}  Ra4 {[%clk 0:00:13]} 47. Bc4 {[%clk 0:00:20]}  Ra3+ {[%clk 0:00:13]} 48. Kd2 {[%clk 0:00:19]}  Nd4 {[%clk 0:00:14]} 49. Rc7 {[%clk 0:00:17]}  Nxf3+ {[%clk 0:00:13]} 50. Kc1 {[%clk 0:00:17]}  Nd4 {[%clk 0:00:09]} 51. a7 {[%clk 0:00:17]}  Kg6 {[%clk 0:00:04]} 52. Bxf7+ {[%clk 0:00:15]}  Kg7 {[%clk 0:00:03]} 53. Bd5+ {[%clk 0:00:15]} 1-0


[Site "https://www.chess.com"]